Workbook

Sheet Feuil1 (hidden)
D1: BUDGET EXECUTION
A2: PERIOD: | B2: January 1st, 2017 to October 31, 2018
A3: Outcome 1: Better regional support through the enhanced development, delivery and use of tailored climate information products at the regional level for climate-sensitive sectors
A4: Outputs (please state relevant output number and name from logframe) | B4: Activities (please state relevant activity from logframe) | C4: INITIAL BUDGET in (USD) | D4: BUDGET as per first Modification in (USD) | E4: Budget as per proposed second modification | F4: Actual expenditure as of October 31, 2018 in (USD) | G4: DEBTS in (USD) | H4: Commitments from August 01, to October 31, 2018 in (USD) | I4: Actual Expenditure + Debts + commitments in (USD) | J4: Expected Balance by end of October 31, 2018 | K4: Actual expenditure rate without commitments and debts | L4: Actual expenditure rate with commitments and debs
D5: a | E5: a' | F5: b | G5: c | H5: d | I5: e = b+c + d | J5: f = a'-e | K5: g = b/a' | L5: h= e/a'
A6: Output 1.1: NRC expert deployed | B6: Activity 1.1.1(A1) Deployment of experts at ACMAD | D6: NRC
B7: Activity 1.1.2(A1) Recruitment of experts by ACMAD | D7: ACMAD
A8: Output 1.2: New:improved products | B8: Activity 1.2.1(A2.1): support to and of provision of technical tools for analysis and prediction of climate ( staff cost for 3 expert and 1 team leader | C8: =SUM(C9:C12) -> 72,000.00 | D8: =SUM(D9:D12) -> 56,000.00 | E8: =E9+E10+E11+E12 -> 71,400.00 | F8: =SUM(F9:F12) -> 71,400.00 | G8: =SUM(G9:G12) -> 0.00 | H8: =SUM(H9:H12) -> 0.00 | I8: =SUM(I9:I12) -> 71,400.00 | J8: =SUM(J9:J12) -> 0.00 | K8: =F8/E8 -> 100% | L8: =I8/E8 -> 100%
B9: 1 Expert on Climate Monitoring | C9: 24,000.00 | D9: =7*1/2*4000 -> 14,000.00 | E9: =8*1/2*4000+4000*0.73 -> 18,920.00 | F9: =2000*3+('[1]Journal BANK (XOF) 2018'!G57+'[1]Journal BANK (XOF) 2018'!G62)/564.49+('[2]Journal BANK (XOF) 2018'!G101+'[2]Journal BANK (XOF) 2018'!G123)/564.49+('[2]Journal BANK (XOF) 2018'!G165/564.49)+('[3]Journal BANK (XOF) 2018'!G402/564.1) -> 18,920.00 | G9: =2000*1*0 -> 0.00 | H9: 0.00 | I9: =F9+G9+H9 -> 18,920.00 | J9: =E9-I9 -> 0.00
B10: 1 Expert on Long Range Forecasting | C10: 24,000.00 | D10: =5*1/2*4000 -> 10,000.00 | E10: =6*1/2*4000 -> 12,000.00 | F10: =2000*2+'[1]Journal BANK (XOF) 2018'!G49/604.82+('[2]Journal BANK (XOF) 2018'!G99+'[2]Journal BANK (XOF) 2018'!G121)/564.49+('[2]Journal BANK (XOF) 2018'!G163/564.49) -> 12,000.00 | G10: =2000*1*0 -> 0.00 | H10: 0.00 | I10: =F10+G10+H10 -> 12,000.00 | J10: =E10-I10 -> 0.00
B11: 1 Expert on GIS | D11: =5*1/2*3000 -> 7,500.00 | E11: =6*1/2*2700 -> 8,100.00 | F11: =1350*3+('[1]Journal BANK (XOF) 2018'!G58+'[1]Journal BANK (XOF) 2018'!G63)/564.49+('[2]Journal BANK (XOF) 2018'!G115)/564.49+('[2]Journal BANK (XOF) 2018'!G166/564.49)+('[2]Journal BANK (XOF) 2018'!G204/564.49) -> 8,100.00 | G11: 0.00 | H11: 0.00 | I11: =F11+G11+H11 -> 8,100.00 | J11: =E11-I11 -> 0.00
B12: 1 Team Leader | C12: 24,000.00 | D12: =(1/3+1/4)*7*6000 -> 24,500.00 | E12: =(1/3+1/4)*8*6000+6000*0.73 -> 32,380.00 | F12: =3500*3+('[1]Journal BANK (XOF) 2018'!G59+'[1]Journal BANK (XOF) 2018'!G61)/564.49+('[2]Journal BANK (XOF) 2018'!G100+'[2]Journal BANK (XOF) 2018'!G122)/564.49+('[2]Journal BANK (XOF) 2018'!G164/564.49)+'[3]Journal BANK (XOF) 2018'!G401/564.1 -> 32,380.00 | G12: =3500*1*0 -> 0.00 | H12: 0.00 | I12: =F12+G12+H12 -> 32,380.00 | J12: =E12-I12 -> 0.00
B13: Activity 1.2.2(A2.2): _regional coordination meeting ACMAD, AGRHYMET, GFCS ( tea break cost). _support for development of website and interface for data exchange (web expert and database staff cost) | C13: =SUM(C14:C15) -> 20,000.00 | D13: =SUM(D14:D15) -> 20,247.80 | E13: =E14+E15 -> 12,265.73 | F13: =SUM(F14:F15) -> 12,265.73 | G13: =SUM(G14:G15) -> 0.00 | H13: =SUM(H14:H15) -> 0.00 | I13: =SUM(I14:I15) -> 12,265.73 | J13: =SUM(J14:J15) -> 0.00 | K13: =F13/E13 -> 100% | L13: =I13/E13 -> 100%
B14: Database Management and web support Expertise | C14: 20,000.00 | D14: =2000*10 -> 20,000.00 | E14: =4000*6*1/2 -> 12,000.00 | F14: =952.38+8000+('[2]Journal BANK (XOF) 2018'!G118)/564.49+'[2]Journal BANK (XOF) 2018'!G292/564.49 -> 12,000.00 | G14: 0.00 | H14: 0.00 | I14: =F14+G14+H14 -> 12,000.00 | J14: =E14-I14 -> 0.00
B15: 3 Tea breaks during the two days meeting of January 31 and February 1, 2017 at ACMAD | D15: =3*4.13*20 -> 247.80 | E15: =3*4.13*20+17.93 -> 265.73 | F15: ='[2]Journal BANK (XOF) 2018'!G108/564.49 -> 265.73 | I15: =F15+G15+H15 -> 265.73 | J15: =E15-I15 -> 0.00
B16: Activity 1.2.3 (A2.3): _Data rescue ( staff costs) | C16: =SUM(C17:C19) -> 18,000.00 | D16: =SUM(D17:D19) -> 30,000.00 | E16: =E17+E18+E19 -> 29,571.43 | F16: =SUM(F17:F19) -> 29,571.43 | G16: =SUM(G17:G19) -> 0.00 | H16: =SUM(H17:H19) -> 0.00 | I16: =SUM(I17:I19) -> 29,571.43 | J16: =SUM(J17:J19) -> -0.00 | K16: =F16/E16 -> 100% | L16: =I16/E16 -> 100%
B17: 1st Experts at ACMAD to continue scanning (J) | C17: 12,000.00 | D17: 12,000.00 | E17: =11047.62+1000 -> 12,047.62 | F17: =809.52+1000*5+('[1]Journal BANK (XOF) 2018'!G47)/604.82+('[1]Journal BANK (XOF) 2018'!G65)/564.49+('[2]Journal BANK (XOF) 2018'!G103+'[2]Journal BANK (XOF) 2018'!G125)/564.49+('[2]Journal BANK (XOF) 2018'!G168/564.49)+('[2]Journal BANK (XOF) 2018'!G211/564.49)+('[2]Journal BANK (XOF) 2018'!G289)/564.49 -> 12,047.61 | G17: =1000*1*0 -> 0.00 | H17: 0.00 | I17: =F17+G17+H17 -> 12,047.61 | J17: =E17-I17 -> 0.01
B18: 2nd Experts at ACMAD to continue scanning (S) | D18: 12,000.00 | E18: =11142.86+1000 -> 12,142.86 | F18: =714.29+1000*6+('[1]Journal BANK (XOF) 2018'!G66)/564.49+('[2]Journal BANK (XOF) 2018'!G104+'[2]Journal BANK (XOF) 2018'!G117+'[2]Journal BANK (XOF) 2018'!G126)/564.49+('[2]Journal BANK (XOF) 2018'!G161+'[2]Journal BANK (XOF) 2018'!G169)/564.49+('[2]Journal BANK (XOF) 2018'!G206+'[2]Journal BANK (XOF) 2018'!G212)/564.49+'[2]Journal BANK (XOF) 2018'!G246/564.49+('[2]Journal BANK (XOF) 2018'!G290+'[2]Journal BANK (XOF) 2018'!G291)/564.49 -> 12,142.87 | G18: 0.00 | H18: 0.00 | I18: =F18+G18+H18 -> 12,142.87 | J18: =E18-I18 -> -0.01
B19: 1 Data Rescure Supervisor | C19: 6,000.00 | D19: =12*1/4*2000 -> 6,000.00 | E19: =5500-500*5/21 -> 5,380.95 | F19: =380.95+500*5+('[1]Journal BANK (XOF) 2018'!G48)/604.82+('[1]Journal BANK (XOF) 2018'!G64)/564.49+('[2]Journal BANK (XOF) 2018'!G102+'[2]Journal BANK (XOF) 2018'!G116+'[2]Journal BANK (XOF) 2018'!G124)/564.49+('[2]Journal BANK (XOF) 2018'!G160+'[2]Journal BANK (XOF) 2018'!G167)/564.49+('[2]Journal BANK (XOF) 2018'!G205/564.49) -> 5,380.95 | G19: 0.00 | H19: =500*5/21*0 -> 0.00 | I19: =F19+G19+H19 -> 5,380.95 | J19: =E19-I19 -> 0.00
A21: Total output 1.2 | C21: =C16+C13+C8 -> 110,000.00 | D21: 106,247.80 | E21: 113,237.16 | F21: 113,237.16 | G21: 0.00 | H21: 0.00 | I21: 113,237.16 | J21: 0.00 | K21: =F21/E21 -> 100% | L21: =I21/E21 -> 100%
A23: Output 1.3: Staff trained | B23: Activity 1.3.1 (A3): International training workshop in July 2017 | C23: =SUM(C24:C28) -> 0.00 | D23: =SUM(D24:D28) -> 12,060.04 | E23: =E24+E25+E26+E27+E28 -> 12,013.90 | F23: =SUM(F24:F28) -> 12,013.90 | G23: =SUM(G24:G28) -> 0.00 | H23: =SUM(H24:H28) -> 0.00 | I23: =SUM(I24:I28) -> 12,013.90 | J23: =SUM(J24:J28) -> -0.0 | K23: =F23/E23 -> 100% | L23: =I23/E23 -> 100%
B24: 2 Flights to Niamey from NOAA/NCEP Washington | D24: =4462.48 -> 4,462.48 | E24: =4462.48 -> 4,462.48 | F24: =2231.24*2 -> 4,462.48 | I24: =F24+G24+H24 -> 4,462.48 | J24: =E24-I24 -> 0.00
B25: 6 days per diems for 3 NOAA Experts | D25: =231*6*3 -> 4,158.00 | E25: =231*6*3-28.56 -> 4,129.44 | F25: =(1039.53+346.51)*2+1386.05-28.69 -> 4,129.44 | I25: =F25+G25+H25 -> 4,129.44 | J25: =E25-I25 -> 0.00
B26: Other travel related cost (3 Visa, vaccine, visa photos) | D26: =1533.03 -> 1,533.03 | E26: =1533.03 -> 1,533.03 | F26: =120.95+100+1198.09+100+13.99 -> 1,533.03 | I26: =F26+G26+H26 -> 1,533.03 | J26: =E26-I26 -> 0.00
B27: 2 tea breaks per day for 5 days for 25 participants during the training | D27: =2*5*25*3.7201 -> 930.03 | E27: =2*5*25*3.7201+66.44 -> 996.47 | F27: ='[2]Journal BANK (XOF) 2018'!G109/564.49 -> 996.47 | I27: =F27+G27+H27 -> 996.47 | J27: =E27-I27 -> -0.0
B28: The cost for lunch 5 days for 7 Participants from Niamey(5 NMHS and 2 AGRHYMET Experts) with the rate of Dollars 27,89 per day | D28: =7*5*27.9 -> 976.50 | E28: =7*5*27.9-84.02 -> 892.48 | F28: ='[2]Journal BANK (XOF) 2018'!G114/564.49 -> 892.48 | I28: =F28+G28+H28 -> 892.48 | J28: =E28-I28 -> 0.00
B30: Activity 1.3.1(I): Training of trainers on NFCS, attendance of 3 consultations on NFCS, administration and finance support | C30: =SUM(C31:C39) -> 20,000.00 | D30: 28,358 | E30: 31,050 | F30: 24,572.13 | G30: 0.00 | H30: 0.00 | I30: 24,572.1 | J30: 6,477.89 | K30: =F30/E30 -> 79% | L30: =I30/E30 -> 79%
B31: 3 Flights to Niamey from pilot countries | C31: 3,000.00 | D31: =2*1000 -> 2,000.00 | E31: =2*1000-905.21 -> 1,094.79 | F31: ='[2]Journal BANK (XOF) 2018'!G107/564.49+'[2]Journal BANK (XOF) 2018'!G158/564.49 -> 1,094.79 | G31: 0.00 | H31: =618000/604.82*0 -> 0.00 | I31: =F31+G31+H31 -> 1,094.79 | J31: =E31-I31 -> -0.00
B32: Per diems for 3 participants from pilot countries and coffe breaks | C32: 3,150.00 | D32: =3000 -> 3,000.00 | E32: 1,763.40 | F32: =('[1]Journal BANK (XOF) 2018'!G55+'[1]Journal BANK (XOF) 2018'!G56)/604.82+('[2]Journal BANK (XOF) 2018'!G110+'[2]Journal BANK (XOF) 2018'!G111+'[2]Journal BANK (XOF) 2018'!G112)/564.49+('[2]Journal BANK (XOF) 2018'!G159/564.49) -> 1,763.40 | G32: 0.00 | H32: =196787/604.82*0 -> 0.00 | I32: 1,763.40 | J32: =E32-I32 -> -0.00
B33: Tickets and visa fees for 3 NFCSs events anticipated in Togo, Gambie and the Guinée Conakry | C33: 0.00 | D33: =4500 -> 4,500.00 | E33: =2368.51+284.15 -> 2,652.66 | F33: ='[2]Journal BANK (XOF) 2018'!G210/564.49+'[2]Journal BANK (XOF) 2018'!G247/564.49+('[2]Journal BANK (XOF) 2018'!G252+'[2]Journal BANK (XOF) 2018'!G253)/564.49++('[2]Journal BANK (XOF) 2018'!G287+'[2]Journal BANK (XOF) 2018'!G288)/564.49 -> 2,652.66 | H33: 0.00 | I33: 2,652.66 | J33: 0.00
B34: Per diems for 3 NFCSs events anticipated in Togo, Gambie and the Guinée Conakry | C34: 0.00 | D34: =3*7*200 -> 4,200.00 | E34: =2635.14-374.11+217.88-1.16+0.19 -> 2,477.94 | F34: ='[2]Journal BANK (XOF) 2018'!G208/564.49+('[2]Journal BANK (XOF) 2018'!G249+'[2]Journal BANK (XOF) 2018'!G250+'[2]Journal BANK (XOF) 2018'!G251)/564.49+('[2]Journal BANK (XOF) 2018'!G293+'[2]Journal BANK (XOF) 2018'!G294+'[2]Journal BANK (XOF) 2018'!G295)/564.49+'[2]Journal BANK (XOF) 2018'!G286/564.49 -> 2,477.94 | H34: 0.00 | I34: 2,477.94 | J34: 0.00
B35: Tickets and Per diems for International Expert | C35: 4,000.00 | E35: 0.00 | H35: 0.00 | I35: 0.00 | J35: 0.00
B36: Translations of guidance documents | C36: 3,000.00 | E36: 0.00 | H36: 0.00 | I36: 0.00 | J36: 0.00
B37: Miscellaneous/ unforeseen expenses (Postal services, and other charges) | C37: 0.00 | D37: =1157.74 -> 1,157.74 | E37: =814.01+6174.17+89.96-217.88+1.16-0.19+390 -> 7,251.23 | F37: =59.41+23.61+(11.81*6)+(46300+6000+6000+1140)/604.82+('[1]Journal BANK (XOF) 2018'!G51+'[1]Journal BANK (XOF) 2018'!G52+'[1]Journal BANK (XOF) 2018'!G53+'[1]Journal BANK (XOF) 2018'!G54)/604.82+('[1]Journal BANK (XOF) 2018'!G68+'[1]Journal BANK (XOF) 2018'!G69)/564.49+('[2]Journal BANK (XOF) 2018'!G113)/564.49+('[2]Journal BANK (XOF) 2018'!G119+'[2]Journal BANK (XOF) 2018'!G120+'[2]Journal BANK (XOF) 2018'!G128+'[2]Journal BANK (XOF) 2018'!G129)/564.49+('[2]Journal BANK (XOF) 2018'!G171+'[2]Journal BANK (XOF) 2018'!G172)/564.49+('[2]Journal BANK (XOF) 2018'!G214+'[2]Journal BANK (XOF) 2018'!G215)/564.49+('[2]Journal BANK (XOF) 2018'!G254+'[2]Journal BANK (XOF) 2018'!G255)/564.49+('[2]Journal BANK (XOF) 2018'!G296+'[2]Journal BANK (XOF) 2018'!G297)/564.49+('[2]Journal BANK (XOF) 2018'!G328+'[2]Journal BANK (XOF) 2018'!G329)/564.49+('[2]Journal BANK (XOF) 2018'!G364+'[2]Journal BANK (XOF) 2018'!G365)/564.49+'[3]Journal BANK (XOF) 2018'!G404/564.1+('[3]Journal BANK (XOF) 2018'!G405+'[3]Journal BANK (XOF) 2018'!G406)/564.1 -> 773.34 | H37: 0.00 | I37: 773.34 | J37: 6,477.89
B38: ACMAD support | C38: 2,850.00 | E38: 0.00 | H38: 0.00 | I38: 0.00 | J38: 0.00
B39: 1 Support Staff (1 month) for preparation, organizetion and reporting on the training for 1 month , Adminitration and Finance support Staff | C39: 4,000.00 | D39: =3000*1/2*9 -> 13,500.00 | E39: =3000*1/2*9+3000*0.77 -> 15,810.00 | F39: =1500*3+('[1]Journal BANK (XOF) 2018'!G60+'[1]Journal BANK (XOF) 2018'!G67)/564.49+('[2]Journal BANK (XOF) 2018'!G105+'[2]Journal BANK (XOF) 2018'!G127)/564.49+('[2]Journal BANK (XOF) 2018'!G170/564.49)+'[2]Journal BANK (XOF) 2018'!G213/564.49+'[3]Journal BANK (XOF) 2018'!G403/564.1 -> 15,810.00 | H39: 0.00 | I39: 15,810.00 | J39: 0.00
A41: Output 1.4: Training manual developed | B41: Activity 1.3.2 (B1): Development of training manual ( NRC deployee and acmad staff) | C41: =C42+C43 -> 5,000.00 | D41: =D42+D43 -> 0.00 | E41: =0 -> 0.00 | F41: =F42+F43 -> 0.00 | G41: =G42+G43 -> 0.00 | H41: =H42+H43 -> 0.00 | I41: =I42+I43 -> 0.00 | J41: =J42+J43 -> 0.00
B42: Translation of manual in a second language | C42: =10000*1/4 -> 2,500.00 | D42: 0.00 | I42: =F42+G42+H42 -> 0.00 | J42: =E42-I42 -> 0.00
B43: Senior International consultant to review the manual | C43: =10000/4 -> 2,500.00 | D43: 0.00 | I43: =F43+G43+H43 -> 0.00 | J43: =E43-I43 -> 0.00
A45: Output 1.5 Website improved for access to products, exchanges through meetings/fora | B45: Activity 1.5.1 (B2): development of web platform including geoserver, communication strategy, information exchange through meetings/fora and bank charges | C45: =SUM(C46:C49) -> 32,000.00 | D45: =SUM(D46:D49) -> 20,334.56 | E45: =E46+E47+E48+E49 -> 20,698.92 | F45: =SUM(F46:F49) -> 20,698.92 | G45: =SUM(G46:G49) -> 0.00 | H45: =SUM(H46:H49) -> 0.00 | I45: =SUM(I46:I49) -> 20,698.92 | J45: =SUM(J46:J49) -> -0.00 | K45: =F45/E45 -> 100% | L45: =I45/E45 -> 100%
B46: International consultant for communication stratégy | C46: 15,000.00 | D46: =1.5*10000 -> 15,000.00 | E46: =1.5*10000-0.02 -> 14,999.98 | F46: =2306.8+2250+10443.18 -> 14,999.98 | I46: =F46+G46+H46 -> 14,999.98 | J46: =E46-I46 -> 0.00
B47: Travels Tickets for ACMAD Staff for meetings, fora and visits as well as Per diem | C47: 5,500.00 | D47: =2*1000+6*2*180 -> 4,160.00 | E47: =2*1000-83.83+2063.37+1657 -> 5,636.54 | F47: =1025.1+'[2]Journal BANK (XOF) 2018'!G106/564.49+1249.96+610.06+203.35+('[2]Journal BANK (XOF) 2018'!G162/564.49)+('[2]Journal BANK (XOF) 2018'!G207+'[2]Journal BANK (XOF) 2018'!G209)/564.49+('[2]Journal BANK (XOF) 2018'!G248)/564.49 -> 5,636.54 | G47: 0.00 | H47: 0.00 | I47: =F47+G47+H47 -> 5,636.54 | J47: =E47-I47 -> -0.00
B48: Travels Tickets for ACMAD Staff for meetings, fora and visits as well as Per diem | C48: 11,500.00 | D48: 0.00 | E48: 0.00 | F48: 0.00 | H48: 0.00 | I48: =F48+G48+H48 -> 0.00 | J48: =E48-I48 -> 0.00
B49: Bank charges | D49: =1174.56 -> 1,174.56 | E49: =1174.56-1112.16 -> 62.40 | F49: =31.2*2 -> 62.40 | I49: =F49+G49+H49 -> 62.40 | J49: =E49-I49 -> -0.00
A51: Output 1.6 integrated Hydromet database available | B51: Activity 1.2.2(A2.2): _support for development of website and interface for data exchange (web expert and database staff cost already above) | C51: =0 -> 0.00 | D51: =0 -> 0.00 | E51: =0 -> 0.00
A53: Total for all outputs | B53: GRAND TOTAL | C53: =C45+C41+C30+C23+C21 -> 167,000.00 | D53: =D45+D30+D23+D21 -> 167,000 | E53: 177,000 | F53: 170,522.11 | G53: 0.00 | H53: 0.00 | I53: 170,522.11 | J53: 6,477.88 | K53: =F53/E53 -> 96% | L53: =I53/E53 -> 96%
C56: Niamey, October 16, 2018
A58: Finance and Administration Officer | J58: Team Leader
A64: Lambert Dénagnon TOSSA | J64: M. André KAMGA FOAMOUHOUE

Sheet acmadfocus
E1: Notes | F1: Partners ( Lead institution tbd) | G1: man.month | H1: comments | I1: unit cost | J1: total cost
A3: WP1 | B3: Climate risks assessment
B4: 1.1: Collect historical records of impacts data in Zambia, Tanzania, Mozambique | E4: Assessment of the status of the hydrological observations networks requires a hydrological expert | F4: NMHSs and ACMAD
B5: 1.2: prepare inventory tables of past droughts, floods and other extremes including impacts over selected areas and countries | F5: JRC, ACMAD and NMHSs
B7: 1.3: workshops on data rescue and analysis of variability/ change in regional/local climate and impacts/risks assessents in selected sectors | F7: JRC, CSC , WMO/GPC , ACMAD, NMHSs, ESKOM, EDF
B8: 1.4 review litterature and identify relevant climate change detection, projection analysis, impacts and risk assessment methods and tools | F8: CSC in Hamburg ( Germany)
B9: 1.5 generate impacts and risk products ( e.g maps amd graphs) | F9: CSC and others tbd
B10: 1.6: Analyze impact and risk products and provide information, knowledge and understanding required for decision making, planning and practices | F10: CSC, Disaster Management Agencies , ESKOM, EDF …
A11: WP 2 | B11: Climate Processes investigation
B12: 2.1: Review litterature on the drivers of climate variability over southern Africa including methods and tools for their monitoring and prediction | F12: Clmate Reseach partners in the project, ACMAD, TMA, SAWS, GPCs
B13: 2.2 Review litterature on eisting knowledge on predictability of southern Africa regional and local cimate features with emphasis on drougths, heavy precipitation . High and low temperatures at sub-seasonal and seasonal timescales , identify predictors using avaiable and C3S data and tools ( i.e CPT) | E13: Added by KNMI | F13: Research partners in the project, ACMAD, TMA, SAWS, GPCs | G13: =1*12*1 -> 12 | H13: 1 scientist for one year
B14: 2.3: identify and apply available advanced methods, tools and input data for detection of current drivers of climate variability in the region and pilot locations, assessment of predictability for relevant climate phenomena impacting the selected sectors . | E14: Requires a DBMS/Climsoft expert/software developper | F14: Research organizations in the project
B15: 2.4: Rescue and digitize climate data for the pilot sites in historical climate records of Zambia, Tanzania, Mozambique, South Africa | F15: TMA, SAWS, ACMAD | G15: 2*12*3 | H15: 2 data experts for 12 months for 3 years
B16: 2.5: Analyze climate data to generate information on climate hazards and related expected changes for the selected sector | F16: CSC , JRC, TMA, SAWS, ACMAD
A17: WP 3 | B17: Methods and tools development
B18: 3.1: identify predictors, develop statistical forecasting and downscaling tools , skills assessent tools, impact and risk assessment tools, knowlegede management and decision support tools for adaptation | F18: tbd
B19: 3.2: Identify tools for climate variability and predictability analysis , trends analysis, composite analysis, analog years detection, precipitation and temperature annual cycle analysis, daily accumulated precipitation analysis, detection of late/early onset and withdrawal, long dry and wet spells analysis | F19: ACMAD, CSC, WMO/GPCs | G19: =1*12*2 -> 24 | H19: 1 sesonal forecasting expert for 2 years
B20: 3.3 Develop database and advanced impact, risks and adaptation options analysis tools | F20: CSC …….
B22: 3.4: Develop climate change detection tools, climate change projections and scenarios analysis tools | F22: CSC …..
B23: 3.5 Develop training materials on climate data analysis,, monitoring, forecasting, projections, impact and risk analysis
B24: 3.6 develop or upgrade knowledge management and decision on hydropower, wind/solar , crop yield estimation, contingency planning tools
B25: 3.7 develop tailoring methods and tools to integrate climate products like seasonal forecasts into knowledge manageent and decision tools
A26: WP 4 | B26: Capacity Development
B27: 4.1: Organize consultations with Users including training | E27: added by KNMI
B28: 4.2: Organize training of water, hydropower and ther renewable energy planners and operators on the use of climate services for adaptation and resilience | F28: tbd | G28: =1*12*4 -> 48 | H28: 1 climate service epert to support training for 4 years on the use of cliate services
B29: 4.3 Organize training on climate data management , climate monitoring, forecasting and scenario generation | F29: tdb | G29: =2*12*3 -> 72 | H29: 1 expert on data rescue and mangement and 1 expert on climate monitoring for 3 yers each
B30: 4.4 Organize training on impacts/risk assessments and adptation options selection, planning and implementation | F30: tdb
A31: WP 5 | B31: Prototype development for end user tailored climate services
B32: 5.1: format climate products for use by crop yield, hydropower, wind/solar, contingency and resilience planning tools
B33: 5.2: Provide climate scenarios for updating national to local adaptation plan | G33: =1*12*3 -> 36 | H33: 1 climate change scenarion developent expert
B34: 5.3: Provide long range forecast for implementation of adaptation and resilience building programmes | F34: TMA, SAWS, Zambia NMHSs, WMO/GPCs, ACMAD | G34: =1*12*4 -> 48 | H34: 1 long range forecaster fo CC and CRR use for 4 years, 3 RCC Long Range forecaster are planned in the intra acp programe
B35: 5.4: Set up and demonstrate service delivery capacity in RCC/NMHSs for energy, agriculture and water stakeholders identified | H35: staff above to cover here
A36: WP 7 | B36: Blueprint for sustaining and upscaling climate services
B37: 7.1: Collect good practices on development and application of climate services for energy, water and agriculture sectors worldwide,
B38: 7.2: Prepare and implement climate services development and application plans in South Africa, Zambia, Mozambique | F38: ACMAD, NMHSs of South Africa, Tanzania, Zambia, WMO/GPCs | H38: staff above to cover here
B39: 7.3: Prepare climate services development plans for other countries and regions in Africa and start resource mobilization for implementation after the FOCUS project | F39: ACMAD and Global partners | H39: staff above to cover here
B40: 7.3 Support participation of potential partners from other african regions to trainings during FOCUS project implementation | H40: staff above to cover here
B41: 7.4: Liaise with LGI to document the operating environment, propose sustainable business strategy and required structure for iplementation, detail operations related to the services | E41: Set-up (100k line item): 1st week NWP/EPS training, 2nd week public weather service training,
B42: 7.5: Identify and structure partnerships for upscaling and sustaining the services | E42: ,2 pax (operational and PWS) plus Expert lecturer
A43: WP 8 | B43: Stakeholder engagement , comunication, dissemination and exploitation
B44: 8.1: prepare a comunication and engagement strategy including an implementation plan
B45: 8.2 Consult with climate service providers and users of agriculture, energy and water sectors selected to review climate related impacts in the sectors and needs of information for adaptation and resilience, define and specify climate services required to meet the needs
B46: 8.3 prepare climate services development and application plans as an outcome of consultations | G46: =1*12*3 -> 36 | H46: 1 expert for 3years on cliate service delivery coordination
B47: 8.4 co-define and specify services,
B48: 8.5 co-design and co-develop services
B49: 8.6 test and validate and experiment services
B50: 8.8 operate the services
B51: 8.8 evaluate and improve services
B52: 8.9 develop , operate and maintain a web presence
B53: 8.10 Organize summer schools for climate scientists
B54: 8.11 Organize semonars and conferences on operational climate services provision
B55: 8.12 organize face to face events with stakeholders
B56: 8.13 Prepare scientific publications, atlases, briefs, summaries for policy/decision makers and mass media
B57: 8.14 organize panel discussions, exhibitions,side events and high level dialogue days at COPs, DRR for a, sustainable development events and high level summits
B58: 8.15 organize workshops and consultations for user engagement with emphasis on identified sector user needs, requirements to satisfy those needs,
B59: one adminstration and finance officer 40% time | G59: =40/100*1*12*4 -> 19.2 | H59: during 4 years
B60: one project manager ( 50% time) | G60: =50/100*1*12*4 -> 24 | H60: during 4 years
B61: secretariat support ( 50% time) | G61: =50/100*1*12*4 -> 24 | H61: during 4 years
A62: Total | G62: =SUM(G4:G61) -> 343.2 | H62: persons.months
B63: tanzania, south africa, malawi
B64: how much person months?
B65: 4 years for the project,
B66: new version of the draft early next week, dateline 19 of february

Sheet activbudgetacmad
E1: Notes | F1: Partners ( Lead institution tbd) | G1: man.month | H1: comments | I1: unit cost | J1: total cost
A3: WP1 | B3: Climate risks assessment
B4: 1.1: Collect historical records of impacts data in Zambia, Tanzania, Mozambique | E4: Assessment of the status of the hydrological observations networks requires a hydrological expert | F4: NMHSs and ACMAD
B5: 1.2: prepare inventory tables of past droughts, floods and other extremes including impacts over selected areas and countries | F5: JRC, ACMAD and NMHSs
B7: 1.3: workshops on data rescue and analysis of variability/ change in regional/local climate and impacts/risks assessents in selected sectors | F7: JRC, CSC , WMO/GPC , ACMAD, NMHSs, ESKOM, EDF
B8: 1.4 review litterature and identify relevant climate change detection, projection analysis, impacts and risk assessment methods and tools | F8: CSC in Hamburg ( Germany)
B9: 1.5 generate impacts and risk products ( e.g maps amd graphs) | F9: CSC and others tbd
B10: 1.6: Analyze impact and risk products and provide information, knowledge and understanding required for decision making, planning and practices | F10: CSC, Disaster Management Agencies , ESKOM, EDF …
A11: WP 2 | B11: Climate Processes investigation
B12: 2.1: Review litterature on the drivers of climate variability over southern Africa including methods and tools for their monitoring and prediction | F12: Clmate Reseach partners in the project, ACMAD, TMA, SAWS, GPCs | G12: =6 -> 6 | H12: 1 cliate scientist
B13: 2.2 Review litterature on existing knowledge on predictability of southern Africa regional and local cimate features with emphasis on drougths, heavy precipitation . High and low temperatures at sub-seasonal and seasonal timescales , | E13: Added by KNMI | F13: Research partners in the project, ACMAD, TMA, SAWS, GPCs | G13: =6 -> 6 | H13: 1 climate scientist
B14: 2.3: identify and apply available advanced methods, tools and input data for detection of current drivers of climate variability in the region and pilot locations, assess predictability for relevant climate phenomena impacting the selected sectors and identify predictors using avaiable C3S data and tools ( i.e CPT) . | E14: Requires a DBMS/Climsoft expert/software developper | F14: ACMAD and Research organizations in the project | G14: =12 -> 12 | H14: 1 climate scientist
B15: 2.4: Rescue and digitize climate data for the pilot sites in historical climate records of Zambia, Tanzania, Mozambique, South Africa available at ACMAD and in the pilot countries | F15: TMA, SAWS, ACMAD, Mozambique and Zambia NMHSs | G15: 2*12*3 | H15: 1 data rescue experts for 3 years and one data management expert for 3 years
B16: 2.5: Analyze climate data to generate information on climate hazards and related expected changes for the selected sector | F16: CSC , JRC, TMA, SAWS, ACMAD
A17: WP 3 | B17: Methods and tools development
B18: 3.1: identify, develop impact and risk assessment tools, knowlegede management and decision support tools for adaptation | F18: tbd
B19: 3.2: Identify, develop, use tools for climate variability and predictability analysis , trends analysis, composite analysis, analog years detection, precipitation and temperature annual cycle analysis, daily accumulated precipitation analysis, detection of late/early onset and withdrawal, long dry and wet spells analysis | F19: ACMAD, CSC, WMO/GPCs | G19: =1*12*2 -> 24 | H19: 1 sesonal forecasting expert for 2 years
B20: 3.3 Develop database and advanced impact, risks and adaptation options analysis tools | F20: CSC …….
B22: 3.4: Develop climate change detection tools, climate change projections and scenarios analysis tools | F22: CSC …..
B23: 3.5 Develop training materials on climate data analysis,, monitoring, forecasting, projections, impact and risk analysis
B24: 3.6 develop or upgrade knowledge management and decision on hydropower, wind/solar , crop yield estimation, contingency planning tools
B25: 3.7 develop tailoring methods and tools to integrate climate products like seasonal forecasts into knowledge manageent and decision tools
A26: WP 4 | B26: Capacity Development
B27: 4.1: Organize consultations with Users including training | E27: added by KNMI
B28: 4.2: Organize training of water, hydropower and ther renewable energy planners and operators on the use of climate services for adaptation and resilience | F28: tbd | G28: =1*12*4 -> 48 | H28: 1 climate service epert to support training for 4 years on the use of cliate services
B29: 4.3 Organize training on climate data management , climate monitoring, forecasting and scenario generation | F29: tdb | G29: =2*12*3 -> 72 | H29: 1 expert on data rescue and mangement and 1 expert on climate monitoring for 3 yers each
B30: 4.4 Organize training on impacts/risk assessments and adptation options selection, planning and implementation | F30: tdb
A31: WP 5 | B31: Prototype development for end user tailored climate services
B32: 5.1: format climate products for use by crop yield, hydropower, wind/solar, contingency and resilience planning tools
B33: 5.2: Provide climate scenarios for updating national to local adaptation plan | G33: =1*12*3 -> 36 | H33: 1 climate change scenarion developent expert
B34: 5.3: Provide long range forecast for implementation of adaptation and resilience building programmes | F34: TMA, SAWS, Zambia NMHSs, WMO/GPCs, ACMAD | G34: =1*12*4 -> 48 | H34: 1 long range forecaster fo CC and CRR use for 4 years, 3 RCC Long Range forecaster are planned in the intra acp programe
B35: 5.4: Set up and demonstrate service delivery capacity in RCC/NMHSs for energy, agriculture and water stakeholders identified | H35: staff above to cover here
A36: WP 7 | B36: Blueprint for sustaining and upscaling climate services
B37: 7.1: Collect good practices on development and application of climate services for energy, water and agriculture sectors worldwide,
B38: 7.2: Prepare and implement climate services development and application plans in South Africa, Zambia, Mozambique | F38: ACMAD, NMHSs of South Africa, Tanzania, Zambia, WMO/GPCs | H38: staff above to cover here
B39: 7.3: Prepare climate services development plans for other countries and regions in Africa and start resource mobilization for implementation after the FOCUS project | F39: ACMAD and Global partners | H39: staff above to cover here
B40: 7.3 Support participation of potential partners from other african regions to trainings during FOCUS project implementation | H40: staff above to cover here
B41: 7.4: Liaise with LGI to document the operating environment, propose sustainable business strategy and required structure for iplementation, detail operations related to the services | E41: Set-up (100k line item): 1st week NWP/EPS training, 2nd week public weather service training,
B42: 7.5: Identify and structure partnerships for upscaling and sustaining the services | E42: ,2 pax (operational and PWS) plus Expert lecturer
A43: WP 8 | B43: Stakeholder engagement , comunication, dissemination and exploitation
B44: 8.1: prepare a comunication and engagement strategy including an implementation plan
B45: 8.2 Consult with climate service providers and users of agriculture, energy and water sectors selected to review climate related impacts in the sectors and needs of information for adaptation and resilience, define and specify climate services required to meet the needs
B46: 8.3 prepare climate services development and application plans as an outcome of consultations | G46: =1*12*3 -> 36 | H46: 1 expert for 3years on cliate service delivery coordination
B47: 8.4 co-define and specify services,
B48: 8.5 co-design and co-develop services
B49: 8.6 test and validate and experiment services
B50: 8.8 operate the services
B51: 8.8 evaluate and improve services
B52: 8.9 develop , operate and maintain a web presence
B53: 8.10 Organize summer schools for climate scientists
B54: 8.11 Organize semonars and conferences on operational climate services provision
B55: 8.12 organize face to face events with stakeholders
B56: 8.13 Prepare scientific publications, atlases, briefs, summaries for policy/decision makers and mass media
B57: 8.14 organize panel discussions, exhibitions,side events and high level dialogue days at COPs, DRR for a, sustainable development events and high level summits
B58: 8.15 organize workshops and consultations for user engagement with emphasis on identified sector user needs, requirements to satisfy those needs,
B59: one adminstration and finance officer 40% time | G59: =40/100*1*12*4 -> 19.2 | H59: during 4 years
B60: one project manager ( 50% time) | G60: =50/100*1*12*4 -> 24 | H60: during 4 years
B61: secretariat support ( 50% time) | G61: =50/100*1*12*4 -> 24 | H61: during 4 years
A62: Total | G62: =SUM(G4:G61) -> 355.2 | H62: persons.months
B63: tanzania, south africa, malawi
B64: how much person months?
B65: 4 years for the project,
B66: new version of the draft early next week, dateline 19 of february
B68: Climate Proceses Investigation (Lead by MetOffice) 2) Methods and tools development (Lead by Barcelona Super Computer) 3) Capacity development (co-lead by WMO, ACMAD and SADC)

Sheet Feuil2 (hidden)

Sheet Feuil3 (hidden)
